bitfinex/quotes_BTCUSD_20250129
["timestamp","ask_amount","ask_price","bid_price","bid_amount"]
[1738182996862,0.00014472,104290.0,104280.0,0.163837]
[1738182997045,0.00014472,104290.0,104280.0,0.211781]
[1738182997528,0.00014472,104290.0,104280.0,0.30902416]
[1738182997742,0.00014472,104290.0,104280.0,0.49202416]
[1738182997976,0.00014472,104290.0,104280.0,0.34202416]
[1738182998195,0.02869665,104290.0,104280.0,0.30902416]
[1738182998406,0.02969665,104290.0,104280.0,0.34202416]
[1738182998616,0.03269665,104290.0,104280.0,0.34202416]
[1738182999090,0.02969665,104290.0,104280.0,0.34402416]
[1738182999300,0.02969665,104290.0,104280.0,0.44138092]
[1738182999508,0.03069665,104290.0,104280.0,0.61451652]
[1738182999719,0.00214472,104290.0,104280.0,0.64390149]
[1738182999928,0.00214472,104290.0,104280.0,0.61451652]
[1738183000145,0.00214472,104290.0,104280.0,0.64389902]
[1738183000391,0.34678126,104340.0,104330.0,0.163774]
[1738183000392,0.00029968,104340.0,104330.0,0.163774]
[1738183000622,0.1445421,104340.0,104330.0,0.02]
[1738183000846,0.0007821,104340.0,104320.0,0.383407]
[1738183001075,0.335509,104320.0,104280.0,0.3071667]
[1738183001292,0.143791,104320.0,104310.0,0.143802]
[1738183001510,0.143791,104320.0,104300.0,0.33555]
[1738183001747,0.39285364,104320.0,104300.0,0.143814]
[1738183001962,0.39285364,104320.0,104290.0,0.43282016]
[1738183002177,0.293786,104330.0,104320.0,0.001]
[1738183002385,0.39102916,104330.0,104290.0,0.16280036]
[1738183002598,0.143809,104310.0,104290.0,0.35457136]
[1738183002810,0.00711282,104310.0,104300.0,0.143815]
[1738183003024,0.00711282,104310.0,104290.0,0.01115949]
[1738183003247,0.335607,104290.0,104260.0,0.191814]
[1738183003468,0.335607,104290.0,104260.0,0.48087216]
[1738183003680,0.527354,104300.0,104270.0,0.335663]
[1738183003890,0.143833,104290.0,104270.0,0.335654]
[1738183004126,0.335606,104290.0,104270.0,0.143856]
[1738183004335,0.143833,104290.0,104270.0,0.335663]
[1738183004552,0.62459716,104300.0,104280.0,0.143841]
[1738183004767,0.335588,104300.0,104280.0,0.335631]
[1738183004996,0.6142619,104300.0,104270.0,0.33579772]
[1738183005221,0.48081016,104290.0,104270.0,0.19195372]
[1738183005444,0.28902316,104290.0,104270.0,0.00014472]
[1738183005696,0.143843,104280.0,104270.0,0.00014472]
[1738183005911,0.24108616,104280.0,104270.0,0.00014472]
[1738183006124,0.47293018,104280.0,104270.0,0.00014472]
[1738183006603,0.48433067,104280.0,104270.0,0.00014472]
[1738183007034,0.51277903,104280.0,104270.0,0.00014472]
[1738183007219,0.43093501,104280.0,104270.0,0.00014472]
[1738183007689,0.43993501,104280.0,104270.0,0.00114472]
[1738183007907,0.43093501,104280.0,104270.0,0.00014472]
[1738183008119,0.44393501,104280.0,104270.0,0.00114472]
[1738183008335,0.43253452,104280.0,104270.0,0.00114472]
[1738183008547,0.25624316,104280.0,104270.0,0.14400172]
[1738183008772,0.25624316,104280.0,104270.0,0.14500172]
[1738183008773,0.018,104280.0,104270.0,0.14500172]
[1738183009038,0.149843,104280.0,104270.0,0.00114472]
[1738183009247,0.27072874,104280.0,104270.0,0.00114472]
[1738183009487,0.26472874,104280.0,104270.0,0.00014472]
[1738183009701,0.26972874,104280.0,104270.0,0.00014472]
[1738183009918,0.10224316,104280.0,104270.0,0.14400172]
[1738183010140,0.148843,104280.0,104270.0,0.14400172]
[1738183010358,0.25508616,104280.0,104270.0,0.00014472]
[1738183010579,0.40508616,104280.0,104270.0,0.00014472]
[1738183010807,0.25508616,104280.0,104270.0,0.00014472]
[1738183011024,0.014,104280.0,104270.0,0.24220393]
[1738183011248,0.014,104280.0,104270.0,0.39124488]
[1738183011470,0.014,104280.0,104270.0,0.42424488]
[1738183012130,0.36430543,104310.0,104270.0,0.42424488]
[1738183012131,0.36430443,104310.0,104290.0,0.527355]
[1738183012339,0.63083797,104310.0,104290.0,0.143819]
[1738183012556,0.43909197,104310.0,104290.0,0.335591]
[1738183012778,0.43909197,104310.0,104290.0,0.143819]
[1738183012779,0.63083897,104310.0,104290.0,0.143819]
[1738183012983,0.63083797,104310.0,104290.0,0.33559]
[1738183013201,0.24724316,104300.0,104270.0,0.01330571]
[1738183013435,0.335617,104290.0,104270.0,0.14599372]
[1738183013649,0.43286016,104290.0,104270.0,0.33880172]
[1738183013869,0.09724316,104290.0,104280.0,0.143843]
[1738183014156,0.14383,104290.0,104270.0,0.52759172]
[1738183014372,0.76525158,104300.0,104270.0,0.53359072]
[1738183014373,0.76525058,104300.0,104270.0,0.53359072]
[1738183014584,0.86249374,104300.0,104280.0,0.143842]
[1738183014781,0.143831,104290.0,104270.0,0.33579172]
[1738183014985,0.3557291,104290.0,104270.0,0.33580072]
[1738183015197,0.02851248,104280.0,104270.0,0.19195172]
[1738183015433,0.02851248,104280.0,104270.0,0.00014472]
[1738183015434,0.17235548,104280.0,104270.0,0.00014472]
[1738183015839,0.26959864,104280.0,104270.0,0.00014472]
[1738183016047,0.41959864,104280.0,104270.0,0.00014472]
[1738183016263,0.5169554,104280.0,104270.0,0.00014472]
[1738183016475,0.5628554,104280.0,104270.0,0.00014472]
[1738183016892,0.53434292,104280.0,104270.0,0.00014472]
[1738183017528,0.43698616,104280.0,104270.0,0.00014472]
[1738183017742,0.43698616,104280.0,104270.0,0.00114472]
[1738183017743,0.44598616,104280.0,104270.0,0.00114472]
[1738183017968,0.43698616,104280.0,104270.0,0.00114472]
[1738183018179,0.48898616,104280.0,104270.0,7.2e-07]
[1738183018392,0.335775,104240.0,104220.0,0.16334159]
[1738183018597,0.52765,104240.0,104220.0,0.1440646]
[1738183018804,0.52765,104240.0,104220.0,0.0001426]
[1738183019009,0.335775,104240.0,104220.0,0.3359646]
[1738183019227,0.527652,104240.0,104220.0,0.1440646]
[1738183019429,0.143912,104230.0,104220.0,0.1440646]
[1738183019627,0.335775,104240.0,104220.0,0.3359646]
[1738183020050,0.143909,104240.0,104220.0,0.58363311]
[1738183020265,0.335774,104240.0,104220.0,0.3359546]
[1738183020471,0.527647,104240.0,104220.0,0.3359546]
[1738183020675,0.335774,104240.0,104220.0,0.7197476]
[1738183020884,0.01783552,104230.0,104220.0,0.3359546]
[1738183021331,0.01783552,104230.0,104220.0,0.4859546]
[1738183021541,0.01783552,104230.0,104220.0,0.42792351]
[1738183021803,0.01783552,104230.0,104220.0,0.3369546]
[1738183022013,4.53e-06,104240.0,104230.0,0.268512]
[1738183022230,0.335642,104280.0,104260.0,0.33569]
[1738183022448,0.01726769,104290.0,104280.0,0.143843]
[1738183022657,0.00014459,104290.0,104280.0,0.143843]
[1738183022858,0.00014459,104290.0,104280.0,0.210972]
[1738183023271,0.00014459,104290.0,104280.0,0.143843]
[1738183023484,0.00014459,104290.0,104280.0,0.00095885]
[1738183023691,0.33564,104280.0,104260.0,0.35469251]
[1738183023907,0.335638,104280.0,104260.0,0.335685]
[1738183024110,0.09724316,104270.0,104240.0,0.26755]
[1738183024343,0.143891,104250.0,104230.0,0.340773]
[1738183024530,0.143891,104250.0,104240.0,0.143898]
[1738183024531,0.335739,104250.0,104240.0,0.143898]
[1738183024774,0.09724316,104270.0,104260.0,0.143871]
[1738183024962,0.335704,104260.0,104240.0,0.191856]
[1738183025172,0.43293116,104270.0,104260.0,0.143871]
[1738183025379,0.09724316,104270.0,104260.0,0.143871]
[1738183025597,0.143843,104280.0,104270.0,0.143857]
[1738183025811,0.00014456,104280.0,104270.0,0.143857]
[1738183026695,0.00014456,104280.0,104270.0,0.24205914]
[1738183026908,0.00014456,104280.0,104270.0,0.24110016]
[1738183027116,0.00014456,104280.0,104270.0,0.33714208]
[1738183027347,0.00914456,104280.0,104270.0,0.24210016]
[1738183028408,0.01314456,104280.0,104270.0,0.24210016]
[1738183029273,0.01314456,104280.0,104270.0,0.001]
[1738183029568,0.25423072,104280.0,104270.0,0.001]
[1738183029788,0.52158748,104280.0,104270.0,0.001]
[1738183030639,0.42434432,104280.0,104270.0,0.001]
[1738183030851,0.32698756,104280.0,104270.0,0.001]
[1738183031061,0.03314456,104280.0,104270.0,0.144857]
[1738183032132,0.03344402,104280.0,104270.0,0.144857]
[1738183032919,0.03344402,104280.0,104270.0,0.66950646]
[1738183033154,0.03344402,104280.0,104270.0,0.78590426]
[1738183033385,0.00029946,104310.0,104300.0,0.143815]
[1738183033626,0.00078158,104310.0,104300.0,0.143815]
[1738183033836,0.00078158,104310.0,104290.0,0.143828]
[1738183033837,0.33632958,104310.0,104290.0,0.143828]
[1738183034055,0.143832,104290.0,104270.0,0.1096776]
[1738183034281,0.335602,104290.0,104270.0,0.34696884]
[1738183034531,0.144843,104280.0,104270.0,0.009]
[1738183034790,0.145843,104280.0,104270.0,0.015]
[1738183035016,0.001,104280.0,104270.0,0.149857]
[1738183035270,0.19252758,104310.0,104270.0,0.19275603]
[1738183035502,0.335667,104270.0,104250.0,0.335709]
[1738183035715,0.62469916,104280.0,104260.0,0.143871]
[1738183035942,0.143857,104270.0,104260.0,0.143871]
[1738183036178,0.09724316,104270.0,104250.0,0.01885608]
[1738183036397,0.43296216,104260.0,104240.0,0.143897]
[1738183036612,0.24112416,104260.0,104240.0,0.143897]
[1738183036848,0.43295316,104260.0,104240.0,0.00014456]
[1738183037068,0.16176553,104250.0,104240.0,0.00014456]
[1738183037528,0.01788153,104250.0,104240.0,0.14404256]
[1738183037941,0.01399139,104250.0,104240.0,0.00014456]
[1738183038156,0.01399139,104250.0,104240.0,0.14404256]
[1738183038383,0.01399139,104250.0,104240.0,0.31134659]
[1738183038581,0.01399139,104250.0,104240.0,0.33338728]
[1738183038787,0.01399139,104250.0,104240.0,0.24128572]
[1738183039400,0.01399139,104250.0,104240.0,0.14404256]
[1738183039603,0.008,104250.0,104240.0,0.33890556]
[1738183039812,0.383679,104260.0,104240.0,0.00214456]
[1738183040033,0.48092216,104260.0,104240.0,0.00214456]
[1738183040240,0.62480116,104260.0,104240.0,0.34090356]
[1738183040441,0.335684,104270.0,104250.0,0.143884]
[1738183040653,0.09724316,104270.0,104260.0,0.143871]
[1738183040862,0.341799,104280.0,104250.0,0.335703]
[1738183041070,0.143857,104270.0,104260.0,0.143865]
[1738183041294,0.143857,104270.0,104240.0,0.19299856]
[1738183041295,0.005,104250.0,104240.0,0.19299856]
[1738183041501,0.005,104250.0,104240.0,0.38685356]
[1738183041916,0.01496,104250.0,104240.0,0.38685356]
[1738183042127,0.01496,104250.0,104240.0,0.59633316]
[1738183042333,0.01496,104250.0,104240.0,0.74633316]
[1738183042549,0.00996,104250.0,104240.0,0.6433408]
[1738183042759,0.00996,104250.0,104240.0,0.39609764]
[1738183043176,0.00996,104250.0,104240.0,0.20624264]
[1738183043380,0.00996,104250.0,104240.0,0.20615032]
[1738183043599,0.00996,104250.0,104240.0,0.55375024]
[1738183043821,0.00996,104250.0,104240.0,0.65399274]
[1738183044238,0.00996,104250.0,104240.0,0.68355296]
[1738183044925,0.00996,104250.0,104240.0,0.68155296]
[1738183045134,0.02892311,104260.0,104250.0,0.346884]
[1738183045135,6.4e-07,104260.0,104250.0,0.346884]
[1738183045347,0.00029946,104310.0,104300.0,0.143815]
[1738183045558,0.14410146,104310.0,104290.0,0.527333]
[1738183045770,0.335591,104300.0,104280.0,0.335619]
[1738183045983,0.43283416,104300.0,104280.0,0.143838]
[1738183046204,0.52760146,104310.0,104290.0,0.335601]
[1738183046413,0.51350961,104310.0,104300.0,0.001]
[1738183046617,0.5905788,104310.0,104300.0,0.001]
[1738183047277,0.5955788,104310.0,104300.0,0.002]
[1738183047761,0.5885788,104310.0,104300.0,0.001]
[1738183048827,0.83902614,104310.0,104300.0,0.002]
[1738183049039,0.5955788,104310.0,104300.0,0.002]
[1738183049240,0.69293556,104310.0,104300.0,0.002]
[1738183049863,0.81803556,104310.0,104300.0,0.002]
[1738183050088,1.0614829,104310.0,104300.0,0.002]
[1738183050286,1.0614829,104310.0,104300.0,0.001]
[1738183050287,1.0844829,104310.0,104300.0,0.001]
[1738183051197,1.3944829,104310.0,104300.0,0.001]
[1738183051456,0.143871,104260.0,104250.0,0.08548469]
[1738183051663,0.09724316,104260.0,104250.0,0.143884]
[1738183051873,0.191766,104300.0,104270.0,0.335661]
[1738183052080,0.43283516,104300.0,104280.0,0.335616]
[1738183052294,0.62459816,104300.0,104280.0,0.527397]
[1738183052503,0.62459816,104300.0,104280.0,0.335616]
[1738183052720,0.62508134,104300.0,104280.0,0.527398]
[1738183052924,0.01789561,104290.0,104280.0,0.335616]
[1738183053760,0.01789561,104290.0,104280.0,0.336616]
[1738183053972,0.01789561,104290.0,104280.0,0.335616]
[1738183054184,0.00048218,104300.0,104290.0,0.143829]
[1738183054393,0.00748218,104300.0,104290.0,0.143829]
[1738183054852,0.00048218,104300.0,104290.0,0.143829]
[1738183055316,0.00048218,104300.0,104290.0,0.57370984]
[1738183055532,0.08510851,104330.0,104320.0,0.143788]
[1738183055756,0.08510851,104330.0,104320.0,0.14474647]
[1738183055978,0.06689261,104330.0,104320.0,0.39198963]
[1738183056197,0.00029968,104340.0,104330.0,0.143774]
[1738183056428,0.00029968,104340.0,104330.0,0.26966543]
[1738183056693,0.00029968,104340.0,104330.0,0.26870712]
[1738183057692,0.00029968,104340.0,104330.0,0.24101716]
[1738183057906,0.00029968,104340.0,104330.0,0.143774]
[1738183058341,0.00429968,104340.0,104330.0,0.143774]
[1738183058555,0.29323484,104340.0,104310.0,0.52724]
[1738183058775,0.191699,104330.0,104310.0,0.14393559]
[1738183058991,0.143788,104320.0,104310.0,0.00014459]
[1738183059216,0.24103116,104320.0,104310.0,0.00014459]
[1738183059642,0.19093512,104330.0,104310.0,0.33566959]
[1738183059859,0.35330494,104330.0,104310.0,0.52739459]
[1738183060090,0.01882794,104330.0,104320.0,0.143788]
[1738183060375,0.01782794,104330.0,104320.0,0.143788]
[1738183060587,0.009,104320.0,104310.0,0.14694659]
[1738183061004,0.009,104320.0,104310.0,0.14494659]
[1738183061693,0.009,104320.0,104310.0,0.00114459]
[1738183061905,0.52719,104330.0,104310.0,0.14393859]
[1738183062128,0.49447313,104330.0,104320.0,0.001]
[1738183062336,0.10624316,104330.0,104320.0,0.144788]
[1738183062543,0.09724316,104330.0,104320.0,0.143788]
[1738183062849,0.24101716,104330.0,104320.0,0.143788]
[1738183063299,0.25001716,104330.0,104320.0,0.143788]
[1738183063677,0.32776444,104330.0,104320.0,0.143788]
[1738183063912,0.10624316,104330.0,104320.0,0.143788]
[1738183064139,0.013,104330.0,104320.0,0.143788]
[1738183064544,0.009,104330.0,104320.0,0.143788]
[1738183064753,0.009,104330.0,104320.0,0.6344785]
[1738183064966,0.00029968,104340.0,104330.0,0.143774]
[1738183065174,0.00029968,104340.0,104330.0,0.24101716]
[1738183065388,0.00029968,104340.0,104330.0,0.143774]
[1738183065591,0.43298684,104340.0,104330.0,0.143774]
[1738183065798,0.00029968,104340.0,104330.0,0.143774]
[1738183066439,0.00929968,104340.0,104330.0,0.31098793]
[1738183066645,0.00929968,104340.0,104330.0,0.48302948]
[1738183067721,0.01229968,104340.0,104330.0,0.48302948]
[1738183068816,0.00029968,104350.0,104340.0,0.31676]
[1738183069029,0.00029968,104350.0,104340.0,0.6674505]
[1738183069238,0.00029968,104350.0,104340.0,0.7624364]
[1738183069457,0.00029968,104350.0,104340.0,0.7524364]
[1738183069658,0.00029968,104350.0,104340.0,0.7624364]
[1738183070221,0.00129968,104350.0,104340.0,0.7694364]
[1738183071107,1e-08,104360.0,104350.0,0.173747]
[1738183071311,0.00029946,104390.0,104380.0,0.293705]
[1738183071513,0.00029946,104390.0,104380.0,0.6343955]
[1738183071722,0.00029946,104390.0,104380.0,0.6573955]
[1738183072153,0.00029946,104390.0,104380.0,0.71375471]
[1738183072362,5e-08,104390.0,104380.0,0.8236779]
[1738183072563,0.00029904,104400.0,104390.0,0.196691]
[1738183072772,0.00029904,104400.0,104390.0,0.6383639]
[1738183072987,0.00029904,104400.0,104390.0,0.6283639]
[1738183073193,0.00029904,104400.0,104390.0,0.34855735]
[1738183073397,0.00029904,104400.0,104390.0,0.31063416]
[1738183073597,0.00029904,104400.0,104390.0,0.37964648]
[1738183073952,0.00029904,104400.0,104390.0,0.52964648]
[1738183074355,0.00029904,104400.0,104390.0,0.40296263]
[1738183074710,0.00129904,104400.0,104390.0,0.41196263]
[1738183074912,0.00129904,104400.0,104390.0,0.43496263]
[1738183075118,0.00029904,104400.0,104390.0,0.42596263]
[1738183075621,0.00029904,104400.0,104390.0,0.43196263]
[1738183076034,0.00029904,104400.0,104390.0,0.16171947]
[1738183076434,0.00029904,104400.0,104390.0,0.16267733]
[1738183076841,0.00029904,104400.0,104390.0,0.2325815]
[1738183077052,0.00029904,104400.0,104390.0,0.16071947]
[1738183077279,0.00029904,104400.0,104390.0,0.25892046]
[1738183077481,0.00029904,104400.0,104390.0,0.25796263]
[1738183077696,0.00029904,104400.0,104390.0,0.28096263]
[1738183078314,0.00029904,104400.0,104390.0,0.28496263]
[1738183078548,0.00029904,104400.0,104390.0,0.52231939]
[1738183078730,0.00029904,104400.0,104390.0,0.56118649]
[1738183078980,0.00029904,104400.0,104390.0,0.58710968]
[1738183079188,4e-08,104400.0,104390.0,0.73670968]
[1738183079436,4e-08,104400.0,104390.0,0.74170968]
[1738183079639,0.0002595,104410.0,104400.0,0.42012534]
[1738183079857,0.00029946,104420.0,104410.0,0.176664]
[1738183080058,0.00029946,104420.0,104410.0,0.27486457]
[1738183080266,0.00029946,104420.0,104410.0,0.27390716]
[1738183080477,0.00029946,104420.0,104410.0,0.32869745]
[1738183080700,0.00025884,104430.0,104420.0,0.01]
[1738183080912,0.08548159,104490.0,104440.0,0.15]
[1738183081125,0.00078062,104450.0,104440.0,0.41482333]
[1738183081342,0.00078062,104450.0,104440.0,0.47865645]
[1738183082003,0.00078062,104450.0,104440.0,0.45073326]
[1738183082426,6.2e-07,104450.0,104440.0,0.44386616]
[1738183082627,6.2e-07,104450.0,104440.0,0.54614346]
[1738183083048,0.00100062,104450.0,104440.0,0.51827636]
[1738183083297,0.00100062,104450.0,104440.0,0.50035317]
[1738183083519,0.00100062,104450.0,104440.0,0.47035317]
[1738183083726,0.00100062,104450.0,104440.0,0.24986616]
[1738183083931,0.00200062,104450.0,104440.0,0.41988034]
[1738183084137,0.00200062,104450.0,104440.0,0.26988034]
[1738183084346,0.00100062,104450.0,104440.0,0.26088034]
[1738183084548,6.2e-07,104450.0,104440.0,0.51863631]
[1738183084753,0.00200062,104450.0,104440.0,0.43827955]
[1738183085382,0.00100062,104450.0,104440.0,0.42927955]
[1738183085591,0.00100062,104450.0,104440.0,0.18203639]
[1738183085884,0.00100062,104450.0,104440.0,0.03841339]
[1738183086095,0.00100062,104450.0,104440.0,0.03941339]
[1738183086512,6.2e-07,104450.0,104440.0,0.01701418]
[1738183086720,0.14360962,104450.0,104440.0,0.006]
[1738183086944,6.2e-07,104450.0,104440.0,0.149623]
[1738183087173,6.2e-07,104450.0,104440.0,0.41686616]
[1738183087391,6.2e-07,104450.0,104440.0,0.44386616]
[1738183087606,0.0454,104490.0,104470.0,0.335018]
[1738183087811,0.04554456,104490.0,104470.0,0.526451]
[1738183088019,0.18909856,104490.0,104470.0,0.143576]
[1738183088237,0.04554456,104490.0,104470.0,0.526433]
[1738183088446,0.04554456,104490.0,104480.0,0.143568]
[1738183089299,0.18910056,104490.0,104460.0,0.382899]
[1738183089510,0.335014,104480.0,104450.0,0.191467]
[1738183089748,0.53463172,104490.0,104470.0,0.001]
[1738183089963,0.53463172,104490.0,104470.0,0.336003]
[1738183089964,0.05454456,104490.0,104470.0,0.336003]
[1738183090179,0.05454456,104490.0,104470.0,0.527431]
[1738183090393,0.19809856,104490.0,104470.0,0.335999]
[1738183090602,0.39050456,104490.0,104470.0,0.335999]
[1738183090812,0.38150456,104490.0,104470.0,0.334999]
[1738183091076,0.33419372,104490.0,104460.0,0.21075921]
[1738183091284,0.68417172,104490.0,104470.0,0.144581]
[1738183091489,0.143568,104480.0,104470.0,0.001]
[1738183091697,0.50175572,104490.0,104470.0,0.14558]
[1738183091901,0.50175572,104490.0,104470.0,0.337021]
[1738183092105,0.19510656,104490.0,104470.0,0.527463]
[1738183092335,0.14386621,104480.0,104470.0,0.001]
[1738183092572,0.00029821,104480.0,104470.0,0.001]
[1738183092795,0.14386621,104480.0,104470.0,0.001]
[1738183093001,0.24110937,104480.0,104470.0,0.001]
[1738183093206,0.00029821,104480.0,104470.0,0.144581]
[1738183093421,0.09754137,104480.0,104460.0,0.526509]
[1738183093663,0.00029821,104480.0,104470.0,0.143581]
[1738183094105,0.00029821,104480.0,104470.0,0.24278128]
[1738183094312,0.00914456,104490.0,104470.0,0.335009]
[1738183094514,0.00914456,104490.0,104480.0,0.143568]
[1738183094941,0.00914456,104490.0,104470.0,0.527441]
[1738183095154,0.00914456,104490.0,104480.0,0.143568]
[1738183095373,0.00014456,104490.0,104480.0,0.14452502]
[1738183095783,0.00914456,104490.0,104480.0,0.14552502]
[1738183096231,0.00914456,104490.0,104480.0,0.144568]
[1738183096620,0.01414456,104490.0,104480.0,0.001]
[1738183096826,0.01414456,104490.0,104480.0,0.144568]
[1738183097035,0.00914456,104490.0,104480.0,0.21360946]
[1738183097247,0.1704339,104490.0,104480.0,0.001]
[1738183097493,0.27267706,104490.0,104480.0,0.001]
[1738183098532,0.42267706,104490.0,104480.0,0.001]
[1738183098782,0.48794172,104490.0,104480.0,0.001]
[1738183098984,0.58529848,104490.0,104480.0,0.001]
[1738183099194,0.23794172,104490.0,104480.0,0.001]
[1738183099399,0.38149572,104490.0,104480.0,0.001]
[1738183100230,0.43879572,104490.0,104480.0,0.001]
[1738183100440,0.42879572,104490.0,104480.0,0.001]
[1738183101051,0.143595,104460.0,104450.0,0.001]
[1738183101505,0.24083816,104460.0,104450.0,0.001]
[1738183101698,0.4842855,104460.0,104450.0,0.001]
[1738183101903,0.24083816,104460.0,104450.0,0.001]
[1738183102108,0.36623816,104460.0,104450.0,0.001]
[1738183102514,0.36623816,104460.0,104450.0,0.002]
[1738183102719,0.37523816,104460.0,104450.0,0.002]
[1738183102920,0.6206855,104460.0,104450.0,0.001]
[1738183103130,0.37723816,104460.0,104450.0,0.001]
[1738183103339,0.36727816,104460.0,104450.0,0.001]
[1738183103544,0.36527816,104460.0,104450.0,0.001]
[1738183103743,0.36927816,104460.0,104450.0,0.001]
[1738183104283,0.37427816,104460.0,104450.0,0.002]
[1738183104507,0.37727816,104460.0,104450.0,0.002]
[1738183105956,0.37727816,104460.0,104450.0,0.145609]
[1738183106395,0.37727816,104460.0,104450.0,0.002]
[1738183106599,0.47244268,104460.0,104450.0,0.002]
[1738183107262,0.86589002,104460.0,104450.0,0.002]
[1738183109024,0.87689002,104460.0,104450.0,0.002]
[1738183109182,0.88289002,104460.0,104450.0,0.001]
[1738183109367,0.89189002,104460.0,104450.0,0.001]
[1738183109569,0.7587255,104460.0,104450.0,0.001]
[1738183109838,0.51527816,104460.0,104450.0,0.001]
[1738183109997,0.44037816,104460.0,104450.0,0.001]
[1738183110888,0.45123613,104460.0,104450.0,0.001]
[1738183111368,0.335141,104440.0,104420.0,0.143644]
[1738183111564,0.335153,104430.0,104420.0,0.14365]
[1738183111767,0.46589826,104440.0,104420.0,0.335183]
[1738183111964,0.335106,104450.0,104430.0,0.335148]
[1738183112194,0.63987331,104460.0,104440.0,0.335119]
[1738183112345,0.49366913,104460.0,104440.0,0.526616]
[1738183112552,0.01585797,104460.0,104450.0,0.143609]
[1738183112794,0.01585797,104460.0,104440.0,0.59378576]
[1738183112996,0.143597,104460.0,104450.0,0.143609]
[1738183113195,0.62554834,104480.0,104460.0,0.143582]
[1738183113418,0.41467221,104490.0,104470.0,0.143581]
[1738183113634,0.143568,104480.0,104460.0,0.143585]
[1738183113949,0.335028,104470.0,104450.0,0.526535]
[1738183114157,0.005,104460.0,104450.0,0.335066]
[1738183114477,0.340066,104460.0,104440.0,0.54730679]
[1738183114667,0.143609,104450.0,104440.0,0.00114456]
[1738183114868,0.4842995,104450.0,104440.0,0.00114456]
[1738183115299,0.6342995,104450.0,104440.0,0.00114456]
[1738183115484,0.143678,104400.0,104390.0,0.000142]
[1738183115864,0.24092116,104400.0,104390.0,0.000142]
[1738183116072,0.39092116,104400.0,104390.0,0.000142]
[1738183116449,0.09724316,104400.0,104390.0,0.143833]
[1738183116672,0.15431477,104410.0,104390.0,0.335409]
[1738183116874,0.24092116,104400.0,104390.0,0.000624]
[1738183117077,0.28523405,104400.0,104390.0,0.000624]
[1738183117507,0.29023405,104400.0,104390.0,0.000624]
[1738183117801,0.68368139,104400.0,104390.0,0.000624]
[1738183118496,0.72668139,104400.0,104390.0,0.000624]
[1738183118718,0.415305,104380.0,104370.0,0.0001419]
[1738183118922,0.02,104360.0,104350.0,0.0001419]
[1738183119138,0.439247,104350.0,104340.0,0.0001419]
[1738183119303,0.56949016,104350.0,104340.0,0.0001419]
[1738183119524,0.58256465,104350.0,104340.0,0.0001419]
[1738183119725,0.55949016,104350.0,104340.0,0.0001419]
[1738183119925,0.53722134,104330.0,104320.0,0.08325871]
[1738183120210,0.6344645,104330.0,104320.0,0.08325871]
[1738183120617,0.6574645,104330.0,104320.0,0.0768887]
[1738183120817,0.9574645,104330.0,104320.0,0.0768887]
[1738183120956,0.6574645,104330.0,104320.0,0.0768887]
[1738183121322,0.7256155,104330.0,104320.0,0.0768887]
[1738183121604,0.7206155,104330.0,104320.0,0.0768887]
[1738183121785,0.143815,104300.0,104290.0,0.0001425]
[1738183121916,0.38726234,104310.0,104300.0,0.143815]
[1738183122129,0.15,104310.0,104300.0,0.143815]
[1738183122383,0.143798,104320.0,104300.0,0.335557]
[1738183122586,0.143802,104310.0,104300.0,0.143815]
[1738183122794,0.143802,104310.0,104290.0,0.00028709]
[1738183122795,0.143815,104300.0,104290.0,0.00028709]
[1738183122997,0.6345055,104300.0,104290.0,0.00028709]
[1738183123689,0.4906905,104300.0,104290.0,0.14411609]
[1738183123891,0.005,104310.0,104300.0,0.143815]
[1738183124086,0.25672964,104320.0,104300.0,0.335557]
[1738183124273,0.84932341,104330.0,104310.0,0.143802]
[1738183124473,0.143789,104320.0,104310.0,0.143801]
[1738183124767,0.15,104320.0,104310.0,0.143801]
[1738183125413,0.01051707,104330.0,104310.0,0.143801]
[1738183125623,0.09724316,104320.0,104290.0,0.19304609]
[1738183125831,0.57900434,104310.0,104290.0,0.33687609]
[1738183126038,0.39105816,104300.0,104290.0,0.00028709]
[1738183126471,0.15,104300.0,104290.0,0.14411609]
[1738183126699,0.293815,104300.0,104290.0,0.14411609]
[1738183126912,0.15,104300.0,104290.0,0.14411609]
[1738183127125,0.15,104300.0,104290.0,0.00128709]
[1738183127126,0.293815,104300.0,104290.0,0.00128709]
[1738183127542,0.293815,104300.0,104290.0,0.00028709]
[1738183127724,0.298815,104300.0,104290.0,0.00028709]
[1738183127943,0.39805816,104300.0,104290.0,0.00028709]
[1738183128158,0.49541492,104300.0,104290.0,0.00028709]
[1738183129238,0.157,104300.0,104290.0,0.14411609]
[1738183129456,0.39805816,104300.0,104290.0,0.00028709]
[1738183129665,0.39605816,104300.0,104290.0,0.00028709]
[1738183129875,0.66379073,104310.0,104290.0,0.14411609]
[1738183130090,0.004,104300.0,104290.0,0.14411609]
[1738183130524,0.22859439,104310.0,104290.0,0.33587809]
[1738183130733,0.008,104300.0,104290.0,0.33587809]
[1738183130937,0.011,104300.0,104290.0,0.33587809]
[1738183131153,0.42832839,104310.0,104290.0,0.52764009]
[1738183131370,0.09278439,104310.0,104300.0,0.143815]
[1738183131830,0.008,104310.0,104300.0,0.143815]
[1738183132457,0.22857239,104320.0,104310.0,0.143802]
[1738183132664,0.42029039,104320.0,104300.0,0.335557]
[1738183132876,0.61201939,104320.0,104300.0,0.335557]
[1738183133100,0.57029039,104320.0,104310.0,0.143802]
[1738183133304,0.23478439,104320.0,104310.0,0.143802]
[1738183133515,0.23478439,104320.0,104290.0,0.28930225]
[1738183133516,0.01,104300.0,104290.0,9e-08]
[1738183133730,0.7330055,104300.0,104290.0,9e-08]
[1738183133932,0.7230055,104300.0,104290.0,9e-08]
[1738183134172,0.81978988,104300.0,104290.0,9e-08]
[1738183134397,1.12978988,104300.0,104290.0,0.0012582]
[1738183134610,1.15278988,104300.0,104290.0,0.0012582]
[1738183135020,0.32556203,104290.0,104280.0,0.000142]
[1738183135244,0.32556203,104290.0,104280.0,0.00062418]
[1738183135245,0.41884618,104290.0,104280.0,0.00062418]
[1738183135431,0.4499371,104290.0,104280.0,0.00062418]
[1738183135674,0.4499371,104290.0,104280.0,0.00013258]
[1738183136280,0.4499371,104290.0,104280.0,0.00113258]
[1738183136281,0.4589371,104290.0,104280.0,0.00113258]
[1738183136695,0.4639371,104290.0,104280.0,0.00213258]
[1738183137154,0.43284618,104290.0,104280.0,0.00213258]